fUST/lending_fUST_20250819
["ID","MTS","AMOUNT","RATE_DAILY","PERIOD"]
[380116175,1755550255979,-480.0,0.00020547,2]
[380116176,1755550255988,-629.04,0.00020547,2]
[380116177,1755550255997,-480.0,0.00020547,2]
[380116178,1755550256006,-480.0,0.00020547,2]
[380116179,1755550256015,-480.0,0.00020547,2]
[380116180,1755550256024,-465.74997117,0.00020547,2]
[380116181,1755550256033,-268.89586572,0.00020547,2]
[380116182,1755550256043,-480.0,0.00020547,2]
[380116183,1755550256053,-480.0,0.00020547,2]
[380116184,1755550256062,-480.0,0.00020547,2]
[380116185,1755550256071,-480.0,0.00020547,2]
[380116186,1755550256079,-480.0,0.00020547,2]
[380116187,1755550256088,-480.0,0.00020547,2]
[380116188,1755550256097,-629.78,0.00020547,2]
[380116189,1755550256106,-559.14,0.00020547,2]
[380116190,1755550256115,-480.0,0.00020547,2]
[380116191,1755550256125,-189.57,0.00020547,2]
[380116192,1755550256135,-480.0,0.00020547,2]
[380116193,1755550256144,-1249.02,0.00020547,2]
[380116194,1755550256154,-465.44519012,0.00020547,2]
[380116195,1755550256163,-480.0,0.00020547,2]
[380116196,1755550256172,-480.0,0.00020547,2]
[380116197,1755550256183,-480.0,0.00020547,2]
[380116198,1755550256193,-480.0,0.00020547,2]
[380116199,1755550256202,-480.0,0.00020547,2]
[380116200,1755550256213,-188.1377635,0.00020547,2]
[380116201,1755550256222,-480.0,0.00020547,2]
[380116202,1755550256231,-480.0,0.00020547,2]
[380116203,1755550256242,-480.0,0.00020547,2]
[380116204,1755550256252,-1212.34,0.00020547,2]
[380116205,1755550256262,-480.0,0.00020547,2]
[380116206,1755550256271,-480.0,0.00020547,2]
[380116207,1755550256280,-538.04,0.00020547,2]
[380116208,1755550256289,-231.35,0.00020547,2]
[380116209,1755550256299,-480.0,0.00020547,2]
[380116210,1755550256308,-480.0,0.00020547,2]
[380116211,1755550256318,-550.91,0.00020547,2]
[380116212,1755550256327,-170.25,0.00020547,2]
[380116213,1755550256336,-480.0,0.00020547,2]
[380116214,1755550256345,-480.0,0.00020547,2]
[380116215,1755550256354,-1113.19,0.00020547,2]
[380116216,1755550256363,-480.0,0.00020547,2]
[380116217,1755550256372,-480.0,0.00020547,2]
[380116218,1755550256381,-480.0,0.00020547,2]
[380116219,1755550256390,-480.0,0.00020547,2]
[380116220,1755550256400,-184.24774284,0.00020547,2]
[380116221,1755550256409,-480.0,0.00020547,2]
[380116222,1755550256418,-480.0,0.00020547,2]
[380116223,1755550256427,-480.0,0.00020547,2]
[380116224,1755550256435,-480.0,0.00020547,2]
[380116225,1755550256444,-614.73,0.00020547,2]
[380116226,1755550256453,-480.0,0.00020547,2]
[380116227,1755550256463,-480.0,0.00020547,2]
[380116228,1755550256472,-480.0,0.00020547,2]
[380116229,1755550256481,-480.0,0.00020547,2]
[380116230,1755550256490,-363.22,0.00020547,2]
[380116231,1755550256499,-414.86,0.00020547,2]
[380116232,1755550256509,-694.25,0.00020547,2]
[380116233,1755550256518,-480.0,0.00020547,2]
[380116234,1755550256527,-480.0,0.00020547,2]
[380116235,1755550256536,-460.0,0.00020547,2]
[380116236,1755550256546,-227.87,0.00020547,2]
[380116237,1755550256555,-480.0,0.00020547,2]
[380116238,1755550256565,-480.0,0.00020547,2]
[380116239,1755550256574,-480.0,0.00020547,2]
[380116240,1755550256584,-480.0,0.00020547,2]
[380116241,1755550256597,-480.0,0.00020547,2]
[380116242,1755550256606,-480.0,0.00020547,2]
[380116243,1755550256615,-597.81,0.00020547,2]
[380116244,1755550256624,-480.0,0.00020547,2]
[380116245,1755550256634,-480.0,0.00020547,2]
[380116246,1755550256643,-480.0,0.00020547,2]
[380116247,1755550256651,-480.0,0.00020547,2]
[380116248,1755550256661,-156.78,0.00020547,2]
[380116249,1755550256671,-480.0,0.00020547,2]
[380116250,1755550256680,-462.5911655,0.00020547,2]
[380116251,1755550256689,-480.0,0.00020547,2]
[380116252,1755550256698,-480.0,0.00020547,2]
[380116253,1755550256707,-160.0,0.00020645,2]
[380116254,1755550256716,-232.18122251,0.00020645,2]
[380116255,1755550256725,-843.81736472,0.00020645,2]
[380116256,1755550256734,-12683.78573522,0.00020645,2]
[380116257,1755550256743,-160.0,0.00020645,2]
[380116258,1755550256753,-375.82681177,0.00020645,2]
[380116259,1755550256762,-216.85420361,0.00020645,2]
[380116260,1755550256771,-215.75323784,0.00020645,2]
[380116261,1755550256780,-160.0,0.00020645,2]
[380116262,1755550256789,-2048.89969174,0.00020731,2]
[380116263,1755550256799,-339.0,0.00020792,2]
[380116264,1755550256808,-230.85,0.00020821,2]
[380116265,1755550256817,-480.0,0.00020821,2]
[380116266,1755550256826,-487.63,0.00020821,2]
[380116267,1755550256835,-620.3,0.00020821,2]
[380116268,1755550256844,-383.81,0.00020821,2]
[380116269,1755550256853,-480.0,0.00020821,2]
[380116270,1755550256862,-480.0,0.00020821,2]
[380116271,1755550256871,-235.90175392,0.00020821,2]
[380116272,1755550256880,-480.0,0.00020821,2]
[380116273,1755550256980,-480.0,0.00020821,2]
[380116274,1755550256990,-480.0,0.00020821,2]
[380116275,1755550256999,-614.54,0.00020821,2]
[380116276,1755550257008,-480.0,0.00020821,2]
[380116277,1755550257018,-480.0,0.00020821,2]
[380116278,1755550257027,-480.0,0.00020821,2]
[380116279,1755550257036,-480.0,0.00020821,2]
[380116280,1755550257045,-480.0,0.00020821,2]
[380116281,1755550257056,-480.0,0.00020821,2]
[380116282,1755550257065,-571.53,0.00020821,2]
[380116283,1755550257074,-256.72,0.00020821,2]
[380116284,1755550257083,-480.0,0.00020821,2]
[380116285,1755550257093,-537.21,0.00020821,2]
[380116286,1755550257102,-575.38,0.00020821,2]
[380116287,1755550257112,-480.0,0.00020821,2]
[380116288,1755550257121,-1249.02,0.00020821,2]
[380116289,1755550257131,-480.0,0.00020821,2]
[380116290,1755550257142,-480.0,0.00020821,2]
[380116291,1755550257151,-480.0,0.00020821,2]
[380116292,1755550257161,-480.0,0.00020821,2]
[380116293,1755550257170,-365.07,0.00020821,2]
[380116294,1755550257179,-480.0,0.00020821,2]
[380116295,1755550257189,-607.79,0.00020821,2]
[380116296,1755550257198,-171.45,0.00020821,2]
[380116297,1755550257207,-1212.34,0.00020821,2]
[380116298,1755550257216,-480.0,0.00020821,2]
[380116299,1755550257225,-480.0,0.00020821,2]
[380116300,1755550257234,-519.17,0.00020821,2]
[380116301,1755550257244,-480.0,0.00020821,2]
[380116302,1755550257253,-550.91,0.00020821,2]
[380116303,1755550257262,-480.0,0.00020821,2]
[380116304,1755550257271,-1113.19,0.00020821,2]
[380116305,1755550257281,-579.69,0.00020821,2]
[380116306,1755550257290,-519.74,0.00020821,2]
[380116307,1755550257299,-480.0,0.00020821,2]
[380116308,1755550257309,-480.0,0.00020821,2]
[380116309,1755550257318,-327.64,0.00020821,2]
[380116310,1755550257327,-385.88,0.00020821,2]
[380116311,1755550257337,-466.11,0.00020821,2]
[380116312,1755550257346,-614.73,0.00020821,2]
[380116313,1755550257356,-480.0,0.00020821,2]
[380116314,1755550257365,-480.0,0.00020821,2]
[380116315,1755550257374,-480.0,0.00020821,2]
[380116316,1755550257383,-694.25,0.00020821,2]
[380116317,1755550257393,-213.17,0.00020821,2]
[380116318,1755550257402,-480.0,0.00020821,2]
[380116319,1755550257411,-480.0,0.00020821,2]
[380116320,1755550257421,-480.0,0.00020821,2]
[380116321,1755550257430,-480.0,0.00020821,2]
[380116322,1755550257439,-214.75394397,0.00020821,2]
[380116323,1755550257449,-162.32,0.00020821,2]
[380116324,1755550257458,-480.0,0.00020821,2]
[380116325,1755550257467,-480.0,0.00020821,2]
[380116326,1755550257477,-484.02,0.00020821,2]
[380116327,1755550257486,-480.0,0.00020821,2]
[380116328,1755550257495,-480.0,0.00020821,2]
[380116329,1755550257504,-420.0,0.00020888,2]
[380116330,1755550257513,-400.37,0.00021095,2]
[380116331,1755550257522,-269.64,0.00021095,2]
[380116332,1755550257531,-480.0,0.00021095,2]
[380116333,1755550257541,-480.0,0.00021095,2]
[380116334,1755550257550,-179.59,0.00021095,2]
[380116335,1755550257559,-559.37034887,0.00021095,2]
[380116336,1755550257568,-164.9,0.00021095,2]
[380116337,1755550257578,-480.0,0.00021095,2]
[380116338,1755550257591,-386.27,0.00021095,2]
[380116339,1755550257600,-480.0,0.00021095,2]
[380116340,1755550257610,-480.0,0.00021095,2]
[380116341,1755550257619,-265.90234493,0.00021095,2]
[380116342,1755550257629,-1249.02,0.00021095,2]
[380116343,1755550257639,-480.0,0.00021095,2]
[380116344,1755550257650,-480.0,0.00021095,2]
[380116345,1755550257660,-480.0,0.00021095,2]
[380116346,1755550257670,-480.0,0.00021095,2]
[380116347,1755550257680,-480.0,0.00021095,2]
[380116348,1755550257689,-1212.34,0.00021095,2]
[380116349,1755550257699,-480.0,0.00021095,2]
[380116350,1755550257710,-200.64,0.00021095,2]
[380116351,1755550257719,-480.0,0.00021095,2]
[380116352,1755550257729,-507.7,0.00021095,2]
[380116353,1755550257738,-1113.19,0.00021095,2]
[380116354,1755550257747,-550.91,0.00021095,2]
[380116355,1755550257758,-480.0,0.00021095,2]
[380116356,1755550257768,-220.89,0.00021095,2]
[380116357,1755550257777,-614.73,0.00021095,2]
[380116358,1755550257787,-480.0,0.00021095,2]
[380116359,1755550257797,-324.59,0.00021095,2]
[380116360,1755550257806,-480.0,0.00021095,2]
[380116361,1755550257815,-694.25,0.00021095,2]
[380116362,1755550257824,-184.5,0.00021095,2]
[380116363,1755550257834,-480.0,0.00021095,2]
[380116364,1755550257843,-221.06,0.00021095,2]
[380116365,1755550257853,-460.0,0.00021095,2]
[380116366,1755550257862,-480.0,0.00021095,2]
[380116367,1755550257871,-426.25,0.00021095,2]
[380116368,1755550257880,-283.72,0.00021095,2]
[380116369,1755550257889,-480.0,0.00021095,2]
[380116370,1755550257899,-2048.89969174,0.00021147,2]
[380116371,1755550257910,-500.0,0.00021231,2]
[380116372,1755550257921,-150.0,0.00021252,2]
[380116373,1755550257930,-480.0,0.00021369,2]
[380116374,1755550257939,-480.0,0.00021369,2]
[380116375,1755550257948,-314.46,0.00021369,2]
[380116376,1755550257957,-480.0,0.00021369,2]
[380116377,1755550257967,-611.88,0.00021369,2]
[380116378,1755550257976,-1249.02,0.00021369,2]
[380116379,1755550257985,-480.0,0.00021369,2]
[380116380,1755550257995,-480.0,0.00021369,2]
[380116381,1755550258005,-552.18,0.00021369,2]
[380116382,1755550258014,-480.0,0.00021369,2]
[380116383,1755550258024,-480.0,0.00021369,2]
[380116384,1755550258034,-1212.34,0.00021369,2]
[380116385,1755550258043,-480.0,0.00021369,2]
[380116386,1755550258054,-480.0,0.00021369,2]
[380116387,1755550258063,-1113.19,0.00021369,2]
[380116388,1755550258072,-550.91,0.00021369,2]
[380116389,1755550258082,-480.0,0.00021369,2]
[380116390,1755550258091,-614.73,0.00021369,2]
[380116391,1755550258100,-480.0,0.00021369,2]
[380116392,1755550258110,-160.07,0.00021369,2]
[380116393,1755550258120,-694.25,0.00021369,2]
[380116394,1755550258129,-480.0,0.00021369,2]
[380116395,1755550258138,-480.0,0.00021369,2]
[380116396,1755550258148,-360.10864285,0.00021369,2]
[380116397,1755550258157,-720.0,0.00021517,20]
[380116398,1755550258167,-2048.89969174,0.00021562,2]
[380116399,1755550258176,-234.53,0.00021643,2]
[380116400,1755550258185,-210.46,0.00021643,2]
[380116401,1755550258194,-480.0,0.00021643,2]
[380116402,1755550258204,-1249.02,0.00021643,2]
[380116403,1755550258214,-480.0,0.00021643,2]
[380116404,1755550258223,-480.0,0.00021643,2]
[380116405,1755550258232,-319.36,0.00021643,2]
[380116406,1755550258242,-480.0,0.00021643,2]
[380116407,1755550258251,-1212.34,0.00021643,2]
[380116408,1755550258260,-480.0,0.00021643,2]
[380116409,1755550258270,-480.0,0.00021643,2]
[380116410,1755550258279,-1113.19,0.00021643,2]
[380116411,1755550258289,-550.91,0.00021643,2]
[380116412,1755550258299,-480.0,0.00021643,2]
[380116413,1755550258308,-614.73,0.00021643,2]
[380116414,1755550258317,-480.0,0.00021643,2]
[380116415,1755550258326,-694.25,0.00021643,2]
[380116416,1755550258338,-480.0,0.00021643,2]
[380116417,1755550258347,-480.0,0.00021643,2]
[380116418,1755550258356,-1000.0,0.00021779,2]
[380116419,1755550258365,-573.9,0.00021917,2]
[380116420,1755550258376,-468.33372945,0.00021917,2]
[380116421,1755550258385,-1249.02,0.00021917,2]
[380116422,1755550258394,-480.0,0.00021917,2]
[380116423,1755550258404,-561.9,0.00021917,2]
[380116424,1755550258413,-480.0,0.00021917,2]
[380116425,1755550258422,-1212.34,0.00021917,2]
[380116426,1755550258432,-480.0,0.00021917,2]
[380116427,1755550258441,-480.0,0.00021917,2]
[380116428,1755550258450,-1113.19,0.00021917,2]
[380116429,1755550258459,-550.91,0.00021917,2]
[380116430,1755550258469,-480.0,0.00021917,2]
[380116431,1755550258478,-614.73,0.00021917,2]
[380116432,1755550258487,-480.0,0.00021917,2]
[380116433,1755550258498,-694.25,0.00021917,2]
[380116434,1755550258509,-480.0,0.00021917,2]
[380116435,1755550258519,-480.0,0.00021917,2]
[380116436,1755550258529,-2048.89969174,0.00021978,2]
[380116437,1755550258538,-437.85,0.00022,7]
[380116438,1755550258547,-1231.1,0.00022,7]
[380116439,1755550258556,-4326.52,0.00022,7]
[380116440,1755550258565,-8523.8,0.00022,2]
[380116441,1755550258574,-289.553,0.00022184,2]
[380116442,1755550258583,-573.9,0.00022191,2]
[380116443,1755550258596,-1249.02,0.00022191,2]
[380116444,1755550258605,-480.0,0.00022191,2]
[380116445,1755550258614,-256.31604757,0.00022191,2]
[380116446,1755550258624,-1212.34,0.00022191,2]
[380116447,1755550258635,-480.0,0.00022191,2]
[380116448,1755550258644,-480.0,0.00022191,2]
[380116449,1755550258654,-1113.19,0.00022191,2]
[380116450,1755550258663,-550.91,0.00022191,2]
[380116451,1755550258672,-480.0,0.00022191,2]
[380116452,1755550258681,-614.73,0.00022191,2]
[380116453,1755550258690,-480.0,0.00022191,2]
[380116454,1755550258699,-694.25,0.00022191,2]
[380116455,1755550258708,-480.0,0.00022191,2]
[380116456,1755550258717,-480.0,0.00022191,2]
[380116457,1755550258727,-203.17,0.00022264,2]
[380116458,1755550258736,-2048.89969174,0.00022394,2]
[380116459,1755550258745,-5425.74233911,0.00022439,2]
[380116460,1755550258754,-573.9,0.00022465,2]
[380116461,1755550258764,-1249.02,0.00022465,2]
[380116462,1755550258773,-480.0,0.00022465,2]
[380116463,1755550258782,-1212.34,0.00022465,2]
[380116464,1755550258792,-480.0,0.00022465,2]
[380116465,1755550258801,-480.0,0.00022465,2]
[380116466,1755550258810,-1113.19,0.00022465,2]
[380116467,1755550258819,-550.91,0.00022465,2]
[380116468,1755550258829,-480.0,0.00022465,2]
[380116469,1755550258839,-614.73,0.00022465,2]
[380116470,1755550258848,-275.86,0.00022465,2]
[380116471,1755550258858,-694.25,0.00022465,2]
[380116472,1755550258869,-480.0,0.00022465,2]
[380116473,1755550258879,-573.9,0.00022739,2]
[380116474,1755550258890,-1249.02,0.00022739,2]
[380116475,1755550258899,-480.0,0.00022739,2]
[380116476,1755550258910,-1212.34,0.00022739,2]
[380116477,1755550258919,-516.55,0.00022739,2]
[380116478,1755550258930,-480.0,0.00022739,2]
[380116479,1755550258939,-1113.19,0.00022739,2]
[380116480,1755550258948,-550.91,0.00022739,2]
[380116481,1755550258957,-480.0,0.00022739,2]
[380116482,1755550258966,-614.73,0.00022739,2]
[380116483,1755550258976,-694.25,0.00022739,2]
[380116484,1755550258985,-480.0,0.00022739,2]
[380116485,1755550258995,-587.0,0.00022764,2]
[380116486,1755550259004,-2048.89969174,0.00022809,2]
[380116487,1755550259013,-573.9,0.00023013,2]
[380116488,1755550259023,-1249.02,0.00023013,2]
[380116489,1755550259032,-480.0,0.00023013,2]
[380116490,1755550259042,-1212.34,0.00023013,2]
[380116491,1755550259051,-480.0,0.00023013,2]
[380116492,1755550259063,-1113.19,0.00023013,2]
[380116493,1755550259074,-550.91,0.00023013,2]
[380116494,1755550259084,-491.77,0.00023013,2]
[380116495,1755550259095,-614.73,0.00023013,2]
[380116496,1755550259105,-694.25,0.00023013,2]
[380116497,1755550259116,-390.85,0.00023013,2]
[380116498,1755550259126,-480.0,0.00023013,2]
[380116499,1755550259136,-2048.89969174,0.00023225,2]
[380116500,1755550259229,-304.75,0.00023276,2]
[380116501,1755550259239,-573.9,0.00023287,2]
[380116502,1755550259248,-1249.02,0.00023287,2]
[380116503,1755550259257,-480.0,0.00023287,2]
[380116504,1755550259266,-1212.34,0.00023287,2]
[380116505,1755550259275,-480.0,0.00023287,2]
[380116506,1755550259285,-1113.19,0.00023287,2]
[380116507,1755550259294,-550.91,0.00023287,2]
[380116508,1755550259303,-614.73,0.00023287,2]
[380116509,1755550259312,-694.25,0.00023287,2]
[380116510,1755550259321,-202.25,0.00023287,2]
[380116511,1755550259331,-573.9,0.00023561,2]
[380116512,1755550259340,-1249.02,0.00023561,2]
[380116513,1755550259349,-480.0,0.00023561,2]
[380116514,1755550259359,-1212.34,0.00023561,2]
[380116515,1755550259368,-312.36,0.00023561,2]
[380116516,1755550259378,-1113.19,0.00023561,2]
[380116517,1755550259387,-550.91,0.00023561,2]
[380116518,1755550259396,-614.73,0.00023561,2]
[380116519,1755550259405,-694.25,0.00023561,2]
[380116520,1755550259415,-250.0,0.00023582,2]
[380116521,1755550259424,-2048.89969174,0.00023641,2]
[380116522,1755550259434,-864.0,0.00023668,20]
[380116523,1755550259443,-600.0,0.00023808,2]
[380116524,1755550259452,-573.9,0.00023835,2]
[380116525,1755550259461,-1249.02,0.00023835,2]
[380116526,1755550259471,-480.0,0.00023835,2]
[380116527,1755550259480,-1212.34,0.00023835,2]
[380116528,1755550259489,-1113.19,0.00023835,2]
[380116529,1755550259499,-550.91,0.00023835,2]
[380116530,1755550259508,-614.73,0.00023835,2]
[380116531,1755550259517,-694.25,0.00023835,2]
[380116532,1755550259526,-258.76342241,0.00023982,2]
[380116533,1755550259536,-2048.89969174,0.00024056,2]
[380116534,1755550259545,-573.9,0.00024109,2]
[380116535,1755550259555,-1249.02,0.00024109,2]
[380116536,1755550259564,-480.0,0.00024109,2]
[380116537,1755550259574,-1212.34,0.00024109,2]
[380116538,1755550259583,-1113.19,0.00024109,2]
[380116539,1755550259596,-550.91,0.00024109,2]
[380116540,1755550259605,-614.73,0.00024109,2]
[380116541,1755550259615,-694.25,0.00024109,2]
[380116542,1755550259624,-8523.8,0.000242,2]
[380116543,1755550259634,-406.33,0.00024288,2]
[380116544,1755550259644,-573.9,0.00024383,2]
[380116545,1755550259653,-1249.02,0.00024383,2]
[380116546,1755550259664,-293.3,0.00024383,2]
[380116547,1755550259673,-1212.34,0.00024383,2]
[380116548,1755550259682,-1113.19,0.00024383,2]
[380116549,1755550259691,-550.91,0.00024383,2]
[380116550,1755550259700,-614.73,0.00024383,2]
[380116551,1755550259710,-694.25,0.00024383,2]
[380116552,1755550259718,-2048.89969174,0.00024472,2]
[380116553,1755550259728,-573.9,0.00024657,2]
[380116554,1755550259737,-1249.02,0.00024657,2]
[380116555,1755550259746,-1212.34,0.00024657,2]
[380116556,1755550259755,-1113.19,0.00024657,2]
[380116557,1755550259765,-550.91,0.00024657,2]
[380116558,1755550259774,-614.73,0.00024657,2]
[380116559,1755550259783,-694.25,0.00024657,2]
[380116560,1755550259792,-4326.52,0.000247,7]
[380116561,1755550259801,-375.82681177,0.000247,7]
[380116562,1755550259810,-216.85420361,0.000247,7]
[380116563,1755550259819,-843.81736472,0.000247,7]
[380116564,1755550259828,-232.18122251,0.000247,7]
[380116565,1755550259837,-1231.1,0.000248,7]
[380116566,1755550259846,-278145.138482,0.000248,2]
[380116567,1755550259855,-823.0,0.00024809,2]
[380116568,1755550259864,-2048.89969174,0.00024887,2]
[380116569,1755550259873,-1459.04825209,0.0002489,8]
[380116570,1755550259882,-437.85,0.000249,7]
[380116571,1755550259891,-449.105438,0.000249,7]
[380116572,1755550259900,-449.105438,0.000249,7]
[380116573,1755550259909,-207.658941,0.000249,7]
[380116574,1755550259919,-207.658941,0.000249,7]
[380116575,1755550259928,-213.450881,0.000249,7]
[380116576,1755550259937,-213.450881,0.000249,7]
[380116577,1755550259947,-166.820851,0.000249,7]
[380116578,1755550259956,-166.820851,0.000249,7]
[380116579,1755550259966,-151.0,0.000249,7]
[380116580,1755550259975,-151.0,0.000249,7]
[380116581,1755550259984,-3430.35070252,0.000249,2]
[380116583,1755551028810,9986.88610601,0.00028767,120]
[380116584,1755551049697,188.118099,0.00027397,120]
[380116586,1755551153138,-282.63419851,0.00018917,2]
[380116587,1755551245088,-344.0,0.00019077,2]
[380116588,1755551245115,-823.93687521,0.00019078,2]
[380116589,1755551245139,-240.02769707,0.00019078,2]
[380116590,1755551245161,-89.7265555,0.00019078,2]
[380116591,1755551265534,172.56049,0.00013699,2]
[380116675,1755551438356,-300.0,0.00019077,2]
[380116676,1755551438366,-21773.66656901,0.00019078,2]
[380116678,1755551438375,-617.91074562,0.00019173,2]
[380116680,1755551438384,-500.0,0.00019177,2]
[380116682,1755551438394,-500.0,0.00019177,2]
[380116684,1755551438403,-396.11883567,0.00019177,2]
[380116686,1755551438412,-210.37600108,0.00019177,2]
[380116688,1755551438422,-480.0,0.00019178,2]
[380116690,1755551438431,-480.0,0.00019178,2]
[380116692,1755551438441,-480.0,0.00019178,2]
[380116694,1755551438451,-483.92032177,0.00019178,2]
[380116696,1755551438460,-480.0,0.00019178,2]
[380116698,1755551438470,-480.0,0.00019178,2]
[380116700,1755551438479,-480.0,0.00019178,2]
[380116702,1755551438488,-460.0,0.00019178,2]
[380116704,1755551438497,-480.0,0.00019178,2]
[380116706,1755551438506,-480.0,0.00019178,2]
[380116708,1755551438515,-480.0,0.00019178,2]
[380116710,1755551438525,-480.0,0.00019178,2]
[380116712,1755551438534,-480.0,0.00019178,2]
[380116714,1755551438543,-480.0,0.00019178,2]
[380116716,1755551438552,-480.0,0.00019178,2]
[380116718,1755551438561,-441.29444275,0.00019178,2]
[380116720,1755551438571,-480.0,0.00019178,2]
[380116722,1755551438580,-481.98587842,0.00019178,2]
[380116724,1755551438589,-480.0,0.00019178,2]
[380116726,1755551438598,-480.0,0.00019178,2]
[380116728,1755551438607,-480.0,0.00019178,2]
[380116730,1755551438616,-460.0,0.00019178,2]
[380116732,1755551438626,-480.0,0.00019178,2]
[380116734,1755551438635,-501.37747728,0.00019178,2]
[380116736,1755551438645,-480.0,0.00019178,2]
[380116738,1755551438654,-480.0,0.00019178,2]
[380116740,1755551438664,-480.0,0.00019178,2]
[380116742,1755551438673,-480.0,0.00019178,2]
[380116744,1755551438683,-480.0,0.00019178,2]
[380116746,1755551438692,-480.0,0.00019178,2]
[380116748,1755551438701,-423.01626459,0.00019178,2]
[380116750,1755551438710,-480.0,0.00019178,2]
[380116752,1755551438720,-480.0,0.00019178,2]
[380116754,1755551438729,-480.0,0.00019178,2]
[380116756,1755551438738,-480.0,0.00019178,2]
[380116758,1755551438747,-485.23514369,0.00019178,2]
[380116760,1755551438757,-480.0,0.00019178,2]
[380116762,1755551438766,-480.0,0.00019178,2]
[380116764,1755551438776,-440.0,0.00019178,2]
[380116766,1755551438786,-480.0,0.00019178,2]
[380116768,1755551438795,-480.0,0.00019178,2]
[380116770,1755551438805,-480.0,0.00019178,2]
[380116772,1755551438814,-480.0,0.00019178,2]
[380116774,1755551438823,-480.0,0.00019178,2]
[380116776,1755551438832,-399.28155314,0.00019178,2]
[380116778,1755551438845,-80.71844686,0.00019178,2]
[380116780,1755551438854,-480.0,0.00019178,2]
[380116782,1755551438865,-480.0,0.00019178,2]
[380116784,1755551438875,-480.0,0.00019178,2]
[380116785,1755551438884,-480.0,0.00019178,2]
[380116786,1755551438893,-480.0,0.00019178,2]
[380116787,1755551438902,-480.0,0.00019178,2]
[380116788,1755551438911,-480.0,0.00019178,2]
[380116790,1755551438920,-480.0,0.00019178,2]
[380116792,1755551438930,-480.0,0.00019178,2]
[380116794,1755551438939,-480.0,0.00019178,2]
[380116795,1755551438948,-480.0,0.00019178,2]
[380116797,1755551438957,-480.0,0.00019178,2]
[380116798,1755551438967,-480.0,0.00019178,2]
[380116800,1755551438976,-480.0,0.00019178,2]
[380116802,1755551438985,-480.0,0.00019178,2]
[380116803,1755551438994,-480.0,0.00019178,2]
[380116804,1755551439003,-440.0,0.00019178,2]
[380116805,1755551439012,-481.86728028,0.00019178,2]
[380116806,1755551439021,-480.0,0.00019178,2]
[380116807,1755551439031,-480.0,0.00019178,2]
[380116808,1755551439041,-480.0,0.00019178,2]
[380116809,1755551439051,-480.0,0.00019178,2]
[380116810,1755551439060,-500.0,0.00019178,2]
[380116811,1755551439071,-480.0,0.00019178,2]
[380116812,1755551439081,-480.0,0.00019178,2]
[380116813,1755551439091,-480.0,0.00019178,2]
[380116814,1755551439101,-480.0,0.00019178,2]
[380116815,1755551439110,-480.0,0.00019178,2]
[380116816,1755551439121,-480.0,0.00019178,2]
[380116817,1755551439131,-480.0,0.00019178,2]
[380116818,1755551439140,-480.0,0.00019178,2]
[380116819,1755551439153,-480.0,0.00019178,2]